[Event "Late-Titled-Tuesday-Blitz-March-12-2024"]
[Site "Chess.com"]
[Date "2024.03.12"]
[Round "4"]
[White "Firouzja2003"]
[Black "mitrabhaa"]
[Result "0-1"]
[WhiteElo "3131"]
[BlackElo "2970"]
[TimeControl "180+1"]
[EndTime "14:40:14 PDT"]
[Termination "mitrabhaa won on time"]

1. Nf3 {[%clk 0:03:00.9]} 1... d5 {[%clk 0:02:57]} 2. g3 {[%clk 0:03:01.3]} 2...
c6 {[%clk 0:02:56.8]} 3. Bg2 {[%clk 0:03:01.7]} 3... Bg4 {[%clk 0:02:57.4]} 4.
O-O {[%clk 0:02:59.8]} 4... Nd7 {[%clk 0:02:57.3]} 5. h3 {[%clk 0:02:57.5]} 5...
Bh5 {[%clk 0:02:57.3]} 6. d4 {[%clk 0:02:58.1]} 6... e6 {[%clk 0:02:56.5]} 7. c4
{[%clk 0:02:58.4]} 7... Ngf6 {[%clk 0:02:56.3]} 8. cxd5 {[%clk 0:02:54.4]} 8...
exd5 {[%clk 0:02:56.3]} 9. Qb3 {[%clk 0:02:54.4]} 9... Qb6 {[%clk 0:02:56.2]}
10. Qe3+ {[%clk 0:02:54.4]} 10... Be7 {[%clk 0:02:56.9]} 11. Nh4 {[%clk
0:02:54.5]} 11... Bg6 {[%clk 0:02:53.7]} 12. Nc3 {[%clk 0:02:53.6]} 12... Nf8
{[%clk 0:02:53.2]} 13. Nxg6 {[%clk 0:02:46.5]} 13... hxg6 {[%clk 0:02:52.7]} 14.
Na4 {[%clk 0:02:43.5]} 14... Qc7 {[%clk 0:02:50.8]} 15. Nc5 {[%clk 0:02:39.3]}
15... N8h7 {[%clk 0:02:24.7]} 16. Bd2 {[%clk 0:02:28.4]} 16... O-O {[%clk
0:02:23.7]} 17. Rac1 {[%clk 0:02:28.4]} 17... Rfe8 {[%clk 0:02:23.5]} 18. Qd3
{[%clk 0:02:27.9]} 18... Nf8 {[%clk 0:02:19]} 19. b4 {[%clk 0:02:27.1]} 19... a6
{[%clk 0:02:13]} 20. a4 {[%clk 0:02:23.9]} 20... Bd6 {[%clk 0:02:05]} 21. b5
{[%clk 0:02:17.9]} 21... axb5 {[%clk 0:02:05]} 22. axb5 {[%clk 0:02:18.8]} 22...
Qe7 {[%clk 0:02:05.6]} 23. bxc6 {[%clk 0:02:10.7]} 23... bxc6 {[%clk 0:02:06.5]}
24. e3 {[%clk 0:02:09]} 24... Bxc5 {[%clk 0:01:54.2]} 25. Rxc5 {[%clk
0:02:08.3]} 25... Qd7 {[%clk 0:01:53.4]} 26. Rfc1 {[%clk 0:02:06.9]} 26... Rac8
{[%clk 0:01:48.2]} 27. Qa6 {[%clk 0:02:02.8]} 27... Ne4 {[%clk 0:01:47.7]} 28.
Bxe4 {[%clk 0:01:58.7]} 28... Rxe4 {[%clk 0:01:29.5]} 29. Rxc6 {[%clk
0:01:43.2]} 29... Rce8 {[%clk 0:01:28.7]} 30. Kg2 {[%clk 0:01:35]} 30... Ne6
{[%clk 0:01:24.7]} 31. Rd6 {[%clk 0:01:30.1]} 31... Qe7 {[%clk 0:01:20.2]} 32.
Rxd5 {[%clk 0:01:29.9]} 32... Nc7 {[%clk 0:01:18.9]} 33. Qb7 {[%clk 0:01:14.9]}
33... Nxd5 {[%clk 0:01:18.6]} 34. Qxd5 {[%clk 0:01:15.8]} 34... Re6 {[%clk
0:01:16.3]} 35. Rc5 {[%clk 0:01:10.4]} 35... Rd6 {[%clk 0:01:14.4]} 36. Qc4
{[%clk 0:01:03.5]} 36... Qe4+ {[%clk 0:01:08.1]} 37. f3 {[%clk 0:01:03.5]} 37...
Qb1 {[%clk 0:01:06.2]} 38. Qc2 {[%clk 0:00:57.2]} 38... Qb7 {[%clk 0:01:03.9]}
39. Rc7 {[%clk 0:00:55.2]} 39... Qa8 {[%clk 0:01:03.4]} 40. Qc4 {[%clk
0:00:52.8]} 40... Rf6 {[%clk 0:01:02.7]} 41. e4 {[%clk 0:00:53]} 41... Qa3
{[%clk 0:00:48.9]} 42. Qc3 {[%clk 0:00:40.3]} 42... Qa6 {[%clk 0:00:48.1]} 43.
Qc4 {[%clk 0:00:30.9]} 43... Qa3 {[%clk 0:00:45]} 44. Bc3 {[%clk 0:00:31.2]}
44... Qc1 {[%clk 0:00:27.8]} 45. Qd3 {[%clk 0:00:08.7]} 45... Ra8 {[%clk
0:00:27.7]} 46. Ba5 {[%clk 0:00:08.9]} 46... Qb2+ {[%clk 0:00:24.1]} 47. Rc2
{[%clk 0:00:08]} 47... Qa1 {[%clk 0:00:20.5]} 48. Bc3 {[%clk 0:00:07.4]} 48...
Qa4 {[%clk 0:00:19.1]} 49. d5 {[%clk 0:00:07.1]} 49... Rb6 {[%clk 0:00:19.6]}
50. Rd2 {[%clk 0:00:04.2]} 50... Rb3 {[%clk 0:00:19.3]} 51. Qd4 {[%clk
0:00:04.2]} 51... Qxd4 {[%clk 0:00:19.3]} 52. Bxd4 {[%clk 0:00:05.1]} 52... Raa3
{[%clk 0:00:19.5]} 53. d6 {[%clk 0:00:01.7]} 53... Rd3 {[%clk 0:00:17.1]} 54.
Rxd3 {[%clk 0:00:02.2]} 54... Rxd3 {[%clk 0:00:18]} 55. Bc5 {[%clk 0:00:02.8]}
55... f6 {[%clk 0:00:16.9]} 56. f4 {[%clk 0:00:03.1]} 56... Kf7 {[%clk
0:00:16.6]} 57. g4 {[%clk 0:00:03.5]} 57... Ke6 {[%clk 0:00:16]} 58. f5+ {[%clk
0:00:03.8]} 58... gxf5 {[%clk 0:00:16]} 59. exf5+ {[%clk 0:00:04.7]} 59... Kd7
{[%clk 0:00:16.3]} 60. Bb4 {[%clk 0:00:04.3]} 60... Rb3 {[%clk 0:00:14.8]} 61.
Bc5 {[%clk 0:00:04.7]} 61... Kc6 {[%clk 0:00:13.9]} 62. d7 {[%clk 0:00:05.2]}
62... Rd3 {[%clk 0:00:12.4]} 63. Bf8 {[%clk 0:00:03.7]} 63... Rxd7 {[%clk
0:00:13]} 64. Kg3 {[%clk 0:00:04.3]} 64... Rf7 {[%clk 0:00:13.1]} 65. Ba3 {[%clk
0:00:03.9]} 65... Kd5 {[%clk 0:00:13.6]} 66. Kh4 {[%clk 0:00:04]} 66... Ra7
{[%clk 0:00:12.1]} 67. Bb4 {[%clk 0:00:03.5]} 67... Rb7 {[%clk 0:00:09.4]} 68.
Ba3 {[%clk 0:00:03.5]} 68... Ke4 {[%clk 0:00:09.2]} 69. Kh5 {[%clk 0:00:03.3]}
69... Rb3 {[%clk 0:00:09.4]} 70. Bf8 {[%clk 0:00:02.9]} 70... Rxh3+ {[%clk
0:00:09.5]} 71. Kg6 {[%clk 0:00:03.4]} 71... Rg3 {[%clk 0:00:09.9]} 72. Bxg7
{[%clk 0:00:03.2]} 72... Rxg4+ {[%clk 0:00:10.2]} 73. Kxf6 {[%clk 0:00:03.9]}
73... Rf4 {[%clk 0:00:10.8]} 74. Ke6 {[%clk 0:00:03.2]} 74... Rxf5 {[%clk
0:00:11.4]} 75. Kd6 {[%clk 0:00:03.3]} 75... Rf7 {[%clk 0:00:11.1]} 76. Bb2
{[%clk 0:00:03.2]} 76... Rb7 {[%clk 0:00:11.3]} 77. Bc3 {[%clk 0:00:03.2]} 77...
Rb3 {[%clk 0:00:11.3]} 78. Bh8 {[%clk 0:00:03.1]} 78... Rg3 {[%clk 0:00:10.9]}
79. Kc6 {[%clk 0:00:03.3]} 79... Rg6+ {[%clk 0:00:11]} 80. Kb7 {[%clk
0:00:03.6]} 80... Kd5 {[%clk 0:00:11.3]} 81. Ka7 {[%clk 0:00:03.7]} 81... Kc6
{[%clk 0:00:10.9]} 82. Bd4 {[%clk 0:00:03.8]} 82... Rg8 {[%clk 0:00:08.9]} 83.
Be5 {[%clk 0:00:04]} 83... Re8 {[%clk 0:00:08.3]} 84. Bb8 {[%clk 0:00:04.1]}
84... Re1 {[%clk 0:00:06]} 85. Ka8 {[%clk 0:00:04.4]} 85... Kb6 {[%clk
0:00:06.6]} 86. Ba7+ {[%clk 0:00:04.7]} 86... Ka6 {[%clk 0:00:07.5]} 87. Bb8
{[%clk 0:00:05.3]} 87... Re7 {[%clk 0:00:08.3]} 88. Bf4 {[%clk 0:00:04.7]} 88...
Rd7 {[%clk 0:00:08.6]} 89. Kb8 {[%clk 0:00:04.6]} 89... Kb6 {[%clk 0:00:07.2]}
90. Ka8 {[%clk 0:00:05.1]} 90... Ka6 {[%clk 0:00:07.2]} 91. Kb8 {[%clk
0:00:05.5]} 91... Ra7 {[%clk 0:00:07]} 92. Kc8 {[%clk 0:00:05.3]} 92... Rb7
{[%clk 0:00:07.1]} 93. Be5 {[%clk 0:00:05.5]} 93... Kb6 {[%clk 0:00:07.5]} 94.
Bd4+ {[%clk 0:00:05.4]} 94... Kc6 {[%clk 0:00:08.4]} 95. Bf6 {[%clk 0:00:03.3]}
95... Rf7 {[%clk 0:00:08.5]} 0-1

[Event "Late-Titled-Tuesday-Blitz-March-12-2024"]
[Site "Chess.com"]
[Date "2024.03.12"]
[Round "5"]
[White "ccccvhhhj"]
[Black "DraningWaterHi"]
[Result "1-0"]
[WhiteElo "2462"]
[BlackElo "2234"]
[TimeControl "180+1"]
[EndTime "14:48:10 PDT"]
[Termination "ccccvhhhj won by resignation"]

1. e4 {[%clk 0:02:56.5]} 1... c5 {[%clk 0:02:57.6]} 2. Nf3 {[%clk 0:02:56.8]}
2... d6 {[%clk 0:02:57.7]} 3. d4 {[%clk 0:02:57.5]} 3... cxd4 {[%clk 0:02:58.2]}
4. Nxd4 {[%clk 0:02:58.4]} 4... Nf6 {[%clk 0:02:58.5]} 5. Nc3 {[%clk 0:02:59]}
5... e6 {[%clk 0:02:57.3]} 6. Be2 {[%clk 0:02:55.3]} 6... Be7 {[%clk 0:02:55.3]}
7. O-O {[%clk 0:02:55.9]} 7... a6 {[%clk 0:02:54.8]} 8. Be3 {[%clk 0:02:56.4]}
8... b5 {[%clk 0:02:53.9]} 9. Bf3 {[%clk 0:02:47.6]} 9... Bb7 {[%clk 0:02:51.7]}
10. e5 {[%clk 0:02:45.9]} 10... Bxf3 {[%clk 0:02:51]} 11. Qxf3 {[%clk
0:02:41.6]} 11... dxe5 {[%clk 0:02:45.7]} 12. Qxa8 {[%clk 0:02:40]} 12... exd4
{[%clk 0:02:44.3]} 13. Rad1 {[%clk 0:02:40]} 1-0

[Event "Late-Titled-Tuesday-Blitz-March-12-2024"]
[Site "Chess.com"]
[Date "2024.03.12"]
[Round "5"]
[White "1g60-1"]
[Black "ACollins05"]
[Result "0-1"]
[WhiteElo "2323"]
[BlackElo "2558"]
[TimeControl "180+1"]
[EndTime "14:49:07 PDT"]
[Termination "ACollins05 won by resignation"]

1. e4 {[%clk 0:03:00.9]} 1... c5 {[%clk 0:02:58.2]} 2. Nf3 {[%clk 0:03:00.9]}
2... d6 {[%clk 0:02:58.1]} 3. d4 {[%clk 0:03:01]} 3... cxd4 {[%clk 0:02:59]} 4.
Nxd4 {[%clk 0:03:01.7]} 4... Nf6 {[%clk 0:02:58.7]} 5. Nc3 {[%clk 0:03:02.3]}
5... Nc6 {[%clk 0:02:59.1]} 6. f3 {[%clk 0:03:02]} 6... e5 {[%clk 0:02:58.9]} 7.
Nb3 {[%clk 0:03:02.1]} 7... Be6 {[%clk 0:02:59]} 8. Be3 {[%clk 0:03:02.4]} 8...
d5 {[%clk 0:02:59.3]} 9. exd5 {[%clk 0:03:02.3]} 9... Nxd5 {[%clk 0:03:00.2]}
10. Nxd5 {[%clk 0:03:02.5]} 10... Qxd5 {[%clk 0:03:01.1]} 11. Qxd5 {[%clk
0:03:02.4]} 11... Bxd5 {[%clk 0:03:02]} 12. O-O-O {[%clk 0:03:02.8]} 12... O-O-O
{[%clk 0:03:02.2]} 13. Bb5 {[%clk 0:03:02]} 13... a6 {[%clk 0:03:01.4]} 14. Bxc6
{[%clk 0:03:02]} 14... Bxc6 {[%clk 0:03:02.3]} 15. Na5 {[%clk 0:03:01]} 15...
Rxd1+ {[%clk 0:02:55.2]} 16. Rxd1 {[%clk 0:03:00.2]} 16... Kc7 {[%clk
0:02:56.1]} 17. Nxc6 {[%clk 0:02:56.4]} 17... Kxc6 {[%clk 0:02:57]} 18. Rd8
{[%clk 0:02:55.6]} 18... g6 {[%clk 0:02:50]} 19. Re8 {[%clk 0:02:30.7]} 19...
Bg7 {[%clk 0:02:36.1]} 20. Re7 {[%clk 0:02:26.2]} 20... Rf8 {[%clk 0:02:34.9]}
21. c4 {[%clk 0:02:21.1]} 21... Bf6 {[%clk 0:02:33.4]} 0-1

[Event "Late-Titled-Tuesday-Blitz-March-12-2024"]
[Site "Chess.com"]
[Date "2024.03.12"]
[Round "5"]
[White "baki83"]
[Black "Skatchkov_V"]
[Result "1-0"]
[WhiteElo "2847"]
[BlackElo "2675"]
[TimeControl "180+1"]
[EndTime "14:49:45 PDT"]
[Termination "baki83 won by resignation"]

1. e4 {[%clk 0:03:00.9]} 1... e5 {[%clk 0:02:59.9]} 2. Nf3 {[%clk 0:03:01]} 2...
Nf6 {[%clk 0:03:00.6]} 3. Nxe5 {[%clk 0:03:00.3]} 3... d6 {[%clk 0:03:01.1]} 4.
Nf3 {[%clk 0:03:00.3]} 4... Nxe4 {[%clk 0:03:01.2]} 5. d3 {[%clk 0:03:00.9]}
5... Nf6 {[%clk 0:03:00.1]} 6. d4 {[%clk 0:03:01.5]} 6... g6 {[%clk 0:03:00.8]}
7. Bd3 {[%clk 0:03:01.7]} 7... Bg7 {[%clk 0:03:01.2]} 8. O-O {[%clk 0:03:02]}
8... O-O {[%clk 0:03:01.9]} 9. h3 {[%clk 0:03:02.5]} 9... c5 {[%clk 0:03:02.5]}
10. Nc3 {[%clk 0:02:59.9]} 10... Nc6 {[%clk 0:03:01.3]} 11. dxc5 {[%clk
0:03:00.2]} 11... dxc5 {[%clk 0:03:01.5]} 12. Bf4 {[%clk 0:03:00.7]} 12... Be6
{[%clk 0:02:40]} 13. Re1 {[%clk 0:02:51.5]} 13... Qb6 {[%clk 0:02:30.6]} 14. Ng5
{[%clk 0:02:38.9]} 14... Nd5 {[%clk 0:01:41.3]} 15. Nxd5 {[%clk 0:02:18.3]}
15... Bxd5 {[%clk 0:01:42.2]} 16. Bxg6 {[%clk 0:02:18.3]} 16... Be6 {[%clk
0:01:43.1]} 17. Bxh7+ {[%clk 0:02:15.2]} 1-0

[Event "Late-Titled-Tuesday-Blitz-March-12-2024"]
[Site "Chess.com"]
[Date "2024.03.12"]
[Round "5"]
[White "Zohid6"]
[Black "jefferyx"]
[Result "1/2-1/2"]
[WhiteElo "2901"]
[BlackElo "3088"]
[TimeControl "180+1"]
[EndTime "14:50:28 PDT"]
[Termination "Game drawn by repetition"]

1. e4 {[%clk 0:03:00.9]} 1... e5 {[%clk 0:02:58.5]} 2. Nf3 {[%clk 0:03:00.7]}
2... Nc6 {[%clk 0:02:59]} 3. Bb5 {[%clk 0:03:00.3]} 3... Nf6 {[%clk 0:02:59.2]}
4. O-O {[%clk 0:02:45.9]} 4... Nxe4 {[%clk 0:02:59.5]} 5. d4 {[%clk 0:02:45.8]}
5... Nd6 {[%clk 0:02:59.9]} 6. dxe5 {[%clk 0:02:46]} 6... Nxb5 {[%clk
0:03:00.2]} 7. a4 {[%clk 0:02:46.2]} 7... d6 {[%clk 0:03:00.6]} 8. axb5 {[%clk
0:02:42.4]} 8... Nxe5 {[%clk 0:03:00.6]} 9. Re1 {[%clk 0:02:31.6]} 9... Be7
{[%clk 0:02:26.7]} 10. Nxe5 {[%clk 0:02:30.8]} 10... dxe5 {[%clk 0:02:27.6]} 11.
Qxd8+ {[%clk 0:02:30.8]} 11... Bxd8 {[%clk 0:02:28.5]} 12. Rxe5+ {[%clk
0:02:29.1]} 12... Be6 {[%clk 0:02:29.2]} 13. Nc3 {[%clk 0:02:27]} 13... Bf6
{[%clk 0:02:16.4]} 14. Re1 {[%clk 0:02:26.1]} 14... Bxc3 {[%clk 0:02:12.6]} 15.
bxc3 {[%clk 0:02:27]} 15... O-O {[%clk 0:02:12.4]} 16. Bf4 {[%clk 0:02:21.6]}
16... Rfc8 {[%clk 0:02:11.8]} 17. Ra4 {[%clk 0:02:19.2]} 17... c6 {[%clk
0:02:06.2]} 18. Rea1 {[%clk 0:01:56.5]} 18... cxb5 {[%clk 0:02:06.4]} 19. Rxa7
{[%clk 0:01:56.4]} 19... Rxa7 {[%clk 0:02:07.3]} 20. Rxa7 {[%clk 0:01:55.9]}
20... Rxc3 {[%clk 0:02:06.3]} 21. Rxb7 {[%clk 0:01:54.5]} 21... Rxc2 {[%clk
0:02:04.7]} 22. Rxb5 {[%clk 0:01:51.1]} 22... h6 {[%clk 0:02:05]} 23. h4 {[%clk
0:01:49.5]} 23... Rc8 {[%clk 0:02:04.5]} 24. Be3 {[%clk 0:01:45.3]} 24... Rd8
{[%clk 0:02:00.7]} 25. Rb1 {[%clk 0:01:43.2]} 25... Rc8 {[%clk 0:01:59.7]} 26.
Rc1 {[%clk 0:01:43.2]} 26... Rxc1+ {[%clk 0:01:59.3]} 27. Bxc1 {[%clk
0:01:44.1]} 27... Kh7 {[%clk 0:01:58.6]} 28. f3 {[%clk 0:01:44.3]} 28... Kg8
{[%clk 0:01:59.1]} 29. Kf2 {[%clk 0:01:44.3]} 29... Kh7 {[%clk 0:01:59.7]} 30.
Kg1 {[%clk 0:01:44.9]} 30... Kg8 {[%clk 0:02:00.2]} 31. Kf2 {[%clk 0:01:45.4]}
31... Kh7 {[%clk 0:02:00.8]} 32. Kg1 {[%clk 0:01:45.7]} 1/2-1/2

[Event "Late-Titled-Tuesday-Blitz-March-12-2024"]
[Site "Chess.com"]
[Date "2024.03.12"]
[Round "5"]
[White "Machidon"]
[Black "wannabe2700"]
[Result "1-0"]
[WhiteElo "2505"]
[BlackElo "2601"]
[TimeControl "180+1"]
[EndTime "14:50:29 PDT"]
[Termination "Machidon won by resignation"]

1. d4 {[%clk 0:02:34.9]} 1... f5 {[%clk 0:02:59.3]} 2. g3 {[%clk 0:02:33]} 2...
Nf6 {[%clk 0:02:57.7]} 3. Bg2 {[%clk 0:02:33.5]} 3... g6 {[%clk 0:02:58.6]} 4.
Nd2 {[%clk 0:02:33.4]} 4... Bg7 {[%clk 0:02:59.2]} 5. e4 {[%clk 0:02:33.7]} 5...
d6 {[%clk 0:02:59]} 6. exf5 {[%clk 0:02:31.6]} 6... gxf5 {[%clk 0:02:59]} 7.
Ngf3 {[%clk 0:02:29.1]} 7... O-O {[%clk 0:02:57.3]} 8. O-O {[%clk 0:02:28]} 8...
Nc6 {[%clk 0:02:57.8]} 9. Nc4 {[%clk 0:02:26.4]} 9... Kh8 {[%clk 0:02:55.4]} 10.
Re1 {[%clk 0:02:11.6]} 10... e6 {[%clk 0:02:55.3]} 11. Ng5 {[%clk 0:01:58.9]}
11... Ne4 {[%clk 0:02:48.7]} 12. Bxe4 {[%clk 0:01:30.2]} 12... fxe4 {[%clk
0:02:49.6]} 13. Qh5 {[%clk 0:01:30.3]} 13... h6 {[%clk 0:02:48.9]} 14. Nf7+
{[%clk 0:01:30.8]} 14... Rxf7 {[%clk 0:02:48.5]} 15. Qxf7 {[%clk 0:01:31.4]}
15... Nxd4 {[%clk 0:02:45.4]} 16. Rxe4 {[%clk 0:01:29.3]} 16... Nxc2 {[%clk
0:02:26.1]} 17. Rh4 {[%clk 0:01:27.5]} 17... Qf6 {[%clk 0:02:24.7]} 18. Rxh6+
{[%clk 0:01:25.1]} 18... Qxh6 {[%clk 0:02:22.6]} 19. Bxh6 {[%clk 0:01:24.4]}
19... Bxh6 {[%clk 0:02:23.5]} 20. Rd1 {[%clk 0:01:14.5]} 20... e5 {[%clk
0:02:20.5]} 21. Qg6 {[%clk 0:01:11.1]} 1-0

[Event "Late-Titled-Tuesday-Blitz-March-12-2024"]
[Site "Chess.com"]
[Date "2024.03.12"]
[Round "5"]
[White "Kosak12"]
[Black "rdarruda"]
[Result "1-0"]
[WhiteElo "2785"]
[BlackElo "2550"]
[TimeControl "180+1"]
[EndTime "14:50:32 PDT"]
[Termination "Kosak12 won by resignation"]

1. d4 {[%clk 0:03:00.9]} 1... Nf6 {[%clk 0:02:55.3]} 2. Bf4 {[%clk 0:03:01.3]}
2... d6 {[%clk 0:02:54.8]} 3. h3 {[%clk 0:03:01.1]} 3... Nbd7 {[%clk 0:02:54.6]}
4. Nf3 {[%clk 0:03:00.8]} 4... c5 {[%clk 0:02:53.8]} 5. e3 {[%clk 0:03:01]} 5...
g6 {[%clk 0:02:53]} 6. c3 {[%clk 0:03:00.2]} 6... Bg7 {[%clk 0:02:52.8]} 7. Bh2
{[%clk 0:03:01]} 7... b6 {[%clk 0:02:52.8]} 8. Bd3 {[%clk 0:03:01.1]} 8... Bb7
{[%clk 0:02:52.7]} 9. Nbd2 {[%clk 0:03:01.8]} 9... O-O {[%clk 0:02:52.5]} 10.
O-O {[%clk 0:03:02.4]} 10... Qc7 {[%clk 0:02:51.9]} 11. e4 {[%clk 0:03:02.9]}
11... e5 {[%clk 0:02:50.1]} 12. dxe5 {[%clk 0:03:03.1]} 12... Nxe5 {[%clk
0:02:46.8]} 13. Nxe5 {[%clk 0:02:59.7]} 13... dxe5 {[%clk 0:02:47.7]} 14. Qe2
{[%clk 0:02:59.3]} 14... Rfe8 {[%clk 0:02:47.1]} 15. Ba6 {[%clk 0:02:50.8]}
15... Rad8 {[%clk 0:02:44.4]} 16. Bxb7 {[%clk 0:02:49.4]} 16... Qxb7 {[%clk
0:02:45.3]} 17. Rfe1 {[%clk 0:02:49.5]} 17... b5 {[%clk 0:02:41.7]} 18. a4
{[%clk 0:02:49]} 18... a6 {[%clk 0:02:41.9]} 19. axb5 {[%clk 0:02:49.1]} 19...
axb5 {[%clk 0:02:42.8]} 20. b3 {[%clk 0:02:48.5]} 20... Rd6 {[%clk 0:02:35.7]}
21. Ra5 {[%clk 0:02:47.8]} 21... Rb6 {[%clk 0:02:35.3]} 22. Rea1 {[%clk
0:02:46.6]} 22... Nh5 {[%clk 0:02:31.9]} 23. Ra7 {[%clk 0:02:46]} 23... Qc6
{[%clk 0:02:31.7]} 24. Nf1 {[%clk 0:02:42.2]} 24... Nf4 {[%clk 0:02:29.7]} 25.
Qf3 {[%clk 0:02:41.8]} 25... c4 {[%clk 0:02:24.4]} 26. b4 {[%clk 0:02:39.1]}
26... Qf6 {[%clk 0:02:15.4]} 27. Ne3 {[%clk 0:02:36.7]} 27... Rd6 {[%clk
0:02:05.4]} 28. Ra8 {[%clk 0:02:18.4]} 28... Rdd8 {[%clk 0:02:00]} 29. Rxd8
{[%clk 0:02:14.7]} 29... Rxd8 {[%clk 0:02:00.9]} 30. Bxf4 {[%clk 0:02:15.1]}
30... exf4 {[%clk 0:01:54.1]} 31. Nd5 {[%clk 0:02:15]} 31... Qe5 {[%clk
0:01:52.7]} 32. Ra7 {[%clk 0:02:14.3]} 32... Re8 {[%clk 0:01:50.8]} 33. Rb7
{[%clk 0:02:08]} 33... g5 {[%clk 0:01:46.9]} 34. Rxb5 {[%clk 0:02:05.9]} 34...
Qxe4 {[%clk 0:01:46.9]} 35. Qxe4 {[%clk 0:02:05.9]} 35... Rxe4 {[%clk
0:01:46.8]} 36. Rb8+ {[%clk 0:02:06.6]} 1-0

[Event "Late-Titled-Tuesday-Blitz-March-12-2024"]
[Site "Chess.com"]
[Date "2024.03.12"]
[Round "5"]
[White "TokChess"]
[Black "GilbertoHernandezAmura"]
[Result "1-0"]
[WhiteElo "2600"]
[BlackElo "2453"]
[TimeControl "180+1"]
[EndTime "14:50:54 PDT"]
[Termination "TokChess won by resignation"]

1. c4 {[%clk 0:03:00.9]} 1... Nf6 {[%clk 0:02:56.1]} 2. g3 {[%clk 0:02:58.7]}
2... g6 {[%clk 0:02:55.2]} 3. Bg2 {[%clk 0:02:59.6]} 3... Bg7 {[%clk 0:02:55.6]}
4. Nc3 {[%clk 0:02:58.4]} 4... O-O {[%clk 0:02:54.6]} 5. Nf3 {[%clk 0:02:56.2]}
5... d6 {[%clk 0:02:52.9]} 6. Rb1 {[%clk 0:02:55.4]} 6... a5 {[%clk 0:02:49.1]}
7. d3 {[%clk 0:02:55.1]} 7... Nc6 {[%clk 0:02:46.4]} 8. a3 {[%clk 0:02:55.2]}
8... Bd7 {[%clk 0:02:38.1]} 9. O-O {[%clk 0:02:54]} 9... Qc8 {[%clk 0:02:35.1]}
10. b4 {[%clk 0:02:51.3]} 10... Bh3 {[%clk 0:02:24.6]} 11. b5 {[%clk 0:02:49.8]}
11... Bxg2 {[%clk 0:02:21.5]} 12. Kxg2 {[%clk 0:02:50.7]} 12... Nb8 {[%clk
0:02:15.3]} 13. Bg5 {[%clk 0:02:39.3]} 13... Nbd7 {[%clk 0:02:07.8]} 14. Qc2
{[%clk 0:02:35.8]} 14... h6 {[%clk 0:02:06.1]} 15. Bd2 {[%clk 0:02:30.1]} 15...
e5 {[%clk 0:01:47]} 16. h3 {[%clk 0:02:11.1]} 16... Nc5 {[%clk 0:01:44.7]} 17.
Be3 {[%clk 0:02:09.1]} 17... b6 {[%clk 0:01:32.3]} 18. Bxc5 {[%clk 0:02:08.3]}
18... bxc5 {[%clk 0:01:23.2]} 19. b6 {[%clk 0:02:09.2]} 19... cxb6 {[%clk
0:01:18.9]} 20. Rxb6 {[%clk 0:02:08.5]} 20... Nd7 {[%clk 0:01:14.1]} 21. Rb5
{[%clk 0:02:04.8]} 21... f5 {[%clk 0:01:05.8]} 22. Nd5 {[%clk 0:02:04]} 22...
Nf6 {[%clk 0:01:01.4]} 23. Ne7+ {[%clk 0:02:03.4]} 1-0

[Event "Late-Titled-Tuesday-Blitz-March-12-2024"]
[Site "Chess.com"]
[Date "2024.03.12"]
[Round "5"]
[White "Sajkochess"]
[Black "Jarming"]
[Result "0-1"]
[WhiteElo "2345"]
[BlackElo "2656"]
[TimeControl "180+1"]
[EndTime "14:51:20 PDT"]
[Termination "Jarming won by checkmate"]

1. e4 {[%clk 0:02:52.4]} 1... c5 {[%clk 0:02:57.5]} 2. Nf3 {[%clk 0:02:52.6]}
2... d6 {[%clk 0:02:57.4]} 3. d4 {[%clk 0:02:53.2]} 3... cxd4 {[%clk 0:02:58.3]}
4. Nxd4 {[%clk 0:02:53.8]} 4... Nf6 {[%clk 0:02:58.9]} 5. Nc3 {[%clk 0:02:54.3]}
5... g6 {[%clk 0:02:59.8]} 6. g3 {[%clk 0:02:54.3]} 6... Bg7 {[%clk 0:03:00.7]}
7. Bg2 {[%clk 0:02:54.2]} 7... O-O {[%clk 0:03:01.6]} 8. O-O {[%clk 0:02:54.7]}
8... Nc6 {[%clk 0:03:02.1]} 9. Nde2 {[%clk 0:02:54.9]} 9... Rb8 {[%clk
0:03:01.9]} 10. a4 {[%clk 0:02:54.2]} 10... a6 {[%clk 0:03:02.4]} 11. Nd5 {[%clk
0:02:51.8]} 11... Nd7 {[%clk 0:03:01.8]} 12. c3 {[%clk 0:02:46.9]} 12... b5
{[%clk 0:03:01.8]} 13. axb5 {[%clk 0:02:46.8]} 13... axb5 {[%clk 0:03:02.7]} 14.
Nd4 {[%clk 0:02:47.2]} 14... Nxd4 {[%clk 0:02:58.6]} 15. cxd4 {[%clk 0:02:48.1]}
15... e6 {[%clk 0:02:57.3]} 16. Ne3 {[%clk 0:02:40.5]} 16... Qb6 {[%clk
0:02:52.2]} 17. Nc2 {[%clk 0:02:32.1]} 17... b4 {[%clk 0:02:47.8]} 18. Be3
{[%clk 0:02:29.9]} 18... b3 {[%clk 0:02:46.7]} 19. Na3 {[%clk 0:02:27.5]} 19...
Qb4 {[%clk 0:02:43.4]} 20. Qe1 {[%clk 0:02:15.2]} 20... Bxd4 {[%clk 0:02:29.1]}
21. Qxb4 {[%clk 0:02:09.7]} 21... Rxb4 {[%clk 0:02:30]} 22. Bxd4 {[%clk
0:02:08.7]} 22... Rxd4 {[%clk 0:02:30.9]} 23. Nb5 {[%clk 0:02:08]} 23... Rd2
{[%clk 0:02:29.1]} 24. Nxd6 {[%clk 0:01:42.4]} 24... Rxd6 {[%clk 0:02:28.2]} 25.
Ra3 {[%clk 0:01:38.8]} 25... Nc5 {[%clk 0:02:27.7]} 26. Rc1 {[%clk 0:01:38.3]}
26... Nd3 {[%clk 0:02:24.4]} 27. Rd1 {[%clk 0:01:35.3]} 27... Rfd8 {[%clk
0:02:23.7]} 28. Rxb3 {[%clk 0:01:34.9]} 28... Ba6 {[%clk 0:02:24.4]} 29. e5
{[%clk 0:01:32.1]} 29... Nxe5 {[%clk 0:02:23.3]} 30. Rxd6 {[%clk 0:01:27.6]}
30... Rxd6 {[%clk 0:02:24.2]} 31. f4 {[%clk 0:01:27.6]} 31... Rd1+ {[%clk
0:02:15.3]} 32. Kf2 {[%clk 0:01:27.4]} 32... Rd2+ {[%clk 0:02:15.7]} 33. Kg1
{[%clk 0:01:25.5]} 33... Ng4 {[%clk 0:02:12.5]} 34. Bf3 {[%clk 0:01:25.3]} 34...
Nxh2 {[%clk 0:02:09.5]} 35. Bb7 {[%clk 0:01:25.2]} 35... Bxb7 {[%clk 0:02:07.5]}
36. Rxb7 {[%clk 0:01:26.1]} 36... Nf3+ {[%clk 0:02:07.7]} 37. Kf1 {[%clk
0:01:26.2]} 37... h5 {[%clk 0:02:05]} 38. b4 {[%clk 0:01:26]} 38... Rb2 {[%clk
0:02:05.2]} 39. b5 {[%clk 0:01:26.5]} 39... Kg7 {[%clk 0:02:04.6]} 40. b6 {[%clk
0:01:27]} 40... e5 {[%clk 0:02:05.2]} 41. Rb8 {[%clk 0:01:20.4]} 41... e4 {[%clk
0:02:03.1]} 42. b7 {[%clk 0:01:15.9]} 42... e3 {[%clk 0:02:03.2]} 43. Re8 {[%clk
0:01:16.5]} 43... Rf2# {[%clk 0:02:02.3]} 0-1